bitfinex-derivatives/quotes_BNBF0:USTF0_20251010
["timestamp","ask_amount","ask_price","bid_price","bid_amount"]
[1760087520428,0.19477683,1259.9,1259.5,0.78534763]
[1760087520629,0.19477683,1260.4,1259.7,0.78590903]
[1760087520833,0.19477683,1260.4,1260.1,0.58774574]
[1760087521032,0.19477683,1260.4,1260.2,0.19623514]
[1760087521631,0.13796466,1260.9,1259.9,0.19623514]
[1760087521829,0.19390925,1260.1,1259.9,0.19623514]
[1760087522329,0.19390925,1260.1,1260.0,0.50279836]
[1760087523731,0.19390925,1260.2,1260.0,0.50279836]
[1760087523934,0.19390925,1260.2,1260.1,0.50279836]
[1760087524233,0.19390925,1260.3,1260.1,1.0905441]
[1760087524429,0.19390925,1260.4,1260.2,1.0905441]
[1760087524633,0.19390925,1260.4,1260.3,0.50279836]
[1760087525133,0.19390925,1260.5,1260.3,1.0905441]
[1760087525331,0.19390925,1260.6,1260.4,1.0905441]
[1760087525530,0.19390925,1260.6,1260.5,0.50279836]
[1760087526433,0.13796466,1260.9,1260.5,0.50279836]
[1760087526632,0.13796466,1260.9,1260.6,0.50279836]
[1760087526830,0.13796466,1260.9,1260.2,0.78398088]
[1760087527035,0.1939361,1260.4,1260.3,0.50268852]
[1760087528934,0.1939361,1260.5,1260.3,0.50268852]
[1760087529136,0.1939361,1260.5,1260.4,0.50268852]
[1760087529940,0.13796466,1260.9,1260.4,0.50268852]
[1760087530239,0.13796466,1260.9,1260.5,0.50268852]
[1760087530440,0.13796466,1260.9,1260.6,0.50268852]
[1760087530639,0.13796466,1260.9,1260.0,0.19623514]
[1760087530838,0.19381762,1260.2,1260.1,0.50282339]
[1760087531337,0.13796466,1260.9,1260.1,0.50282339]
[1760087531538,0.13796466,1260.9,1260.2,0.50282339]
[1760087531737,0.13796466,1260.9,1260.3,0.50282339]
[1760087531937,0.13796466,1260.9,1259.8,0.78398088]
[1760087532137,0.19381086,1260.1,1259.9,0.50294219]
[1760087532338,0.19381086,1260.1,1260.0,0.50294219]
[1760087534843,0.19381086,1260.3,1260.0,1.09068793]
[1760087535040,0.19381086,1260.3,1260.1,0.50294219]
[1760087535246,0.19381086,1260.3,1260.2,0.50294219]
[1760087535446,0.19381086,1260.4,1260.2,1.09068793]
[1760087535741,0.19381086,1260.4,1260.3,0.50294219]
[1760087538850,0.19381086,1260.5,1260.3,1.09068793]
[1760087539147,0.19381086,1260.5,1260.4,0.50294219]
[1760087539347,0.19381086,1260.6,1260.4,1.09068793]
[1760087539549,0.19381086,1260.6,1260.5,0.50294219]
[1760087540550,0.13796466,1260.9,1260.5,0.50294219]
[1760087540753,0.13796466,1260.9,1260.6,0.50294219]
[1760087540951,0.13796466,1260.9,1260.3,0.78398088]
[1760087540952,0.13796466,1260.9,1260.7,0.50294219]
[1760087541149,0.13796466,1260.9,1260.8,0.50294219]
[1760087551559,0.13796466,1260.9,1260.1,0.78398088]
[1760087551760,0.19388386,1260.4,1260.2,0.50325623]
[1760087552054,0.19388386,1260.4,1260.3,0.50325623]
[1760087553258,0.13796466,1260.9,1260.3,0.50325623]
[1760087553456,0.13796466,1260.9,1260.4,0.50325623]
[1760087553658,0.13796466,1260.9,1259.9,0.78398088]
[1760087553954,0.19394211,1260.1,1260.0,0.50347932]
[1760087555058,0.13796466,1260.9,1260.0,0.50347932]
[1760087555358,0.13796466,1260.9,1260.1,0.50347932]
[1760087555555,0.13796466,1260.9,1260.2,0.50347932]
[1760087555758,0.13796466,1260.9,1259.5,0.19623514]
[1760087555955,0.19394141,1259.8,1259.6,0.50358047]
[1760087556158,0.19394141,1259.8,1259.7,0.50358047]
[1760087562261,0.19394141,1259.8,1258.9,0.78398088]
[1760087562566,0.13796466,1260.9,1259.0,0.5042265]
[1760087562761,0.13796466,1260.9,1259.1,0.5042265]
[1760087562964,0.13796466,1260.9,1259.2,0.5042265]
[1760087563164,0.13796466,1260.9,1258.7,0.78398088]
[1760087563165,0.13796466,1260.9,1258.8,0.58774574]
[1760087563460,0.19392918,1259.0,1258.9,0.50441422]
[1760087566664,0.13796466,1260.9,1258.9,0.50441422]
[1760087566961,0.13796466,1260.9,1259.0,0.50441422]
[1760087567164,0.13796466,1260.9,1259.1,0.50441422]
[1760087567373,0.13796466,1260.9,1259.2,0.50441422]
[1760087567561,0.13796466,1260.9,1258.7,0.78398088]
[1760087567764,0.19358567,1258.9,1258.8,0.50355357]
[1760087568865,0.19358567,1258.9,1258.8,0.50333255]
[1760087572161,0.13796466,1260.9,1258.8,0.50333255]
[1760087572460,0.13796466,1260.9,1258.9,0.50333255]
[1760087572668,0.13796466,1260.9,1258.5,0.78463701]
[1760087572866,0.13796466,1260.9,1258.6,0.50256848]
[1760087572867,0.19338521,1258.8,1258.6,0.50256848]
[1760087573064,0.19338521,1258.8,1258.7,0.50256848]
[1760087576770,0.13796466,1260.9,1258.7,0.50256848]
[1760087576970,0.13796466,1260.9,1258.8,0.50256848]
[1760087577268,0.13796466,1260.9,1258.9,0.50256848]
[1760087577471,0.13796466,1260.9,1258.5,0.19623514]
[1760087577668,0.19302588,1258.7,1258.6,0.50150194]
[1760087580167,0.13796466,1260.9,1258.6,0.50150194]
[1760087580472,0.13796466,1260.9,1258.7,0.50150194]
[1760087580674,0.13796466,1260.9,1258.8,0.50150194]
[1760087580873,0.13796466,1260.9,1258.3,0.19623514]
[1760087581069,0.19263335,1258.6,1258.4,0.50115388]
[1760087581276,0.19263335,1258.7,1258.5,0.50115388]
[1760087581476,0.19263335,1258.7,1258.6,0.50115388]
[1760087584177,0.19263335,1258.8,1258.6,0.50115388]
[1760087584380,0.19263335,1258.8,1258.7,0.50115388]
[1760087585181,0.19263335,1258.9,1258.7,0.50115388]
[1760087585381,0.19263335,1258.9,1258.8,0.50115388]
[1760087586883,0.19263335,1259.0,1258.8,0.50115388]
[1760087587183,0.19263335,1259.1,1258.9,0.69738902]
[1760087587383,0.19263335,1259.2,1259.0,0.50115388]
[1760087587579,0.19263335,1259.2,1259.1,0.50115388]
[1760087587777,0.19263335,1259.4,1259.1,0.50115388]
[1760087588083,0.19263335,1259.4,1259.2,0.50115388]
[1760087588283,0.13796466,1260.9,1259.3,0.50115388]
[1760087588484,0.13796466,1260.9,1259.0,0.19623514]
[1760087588683,0.19257333,1259.2,1259.1,0.5004208]
[1760087590682,0.19257333,1259.3,1259.1,0.5004208]
[1760087590883,0.19257333,1259.3,1259.2,0.5004208]
[1760087592584,0.13796466,1260.9,1259.2,0.5004208]
[1760087592886,0.13796466,1260.9,1259.3,0.5004208]
[1760087593084,0.13796466,1260.9,1259.0,0.19623514]
[1760087593281,0.19269019,1259.3,1259.1,0.50053524]
[1760087593484,0.19269019,1259.3,1259.2,0.50053524]
[1760087601390,0.13796466,1260.9,1259.2,0.50053524]
[1760087601591,0.13796466,1260.9,1259.3,0.50053524]
[1760087601790,0.13796466,1260.9,1259.4,0.50053524]
[1760087601989,0.13796466,1260.9,1258.9,0.19623514]
[1760087602194,0.19310942,1259.2,1259.0,0.50153491]
[1760087602494,0.19310942,1259.2,1258.9,0.19623514]
[1760087602694,0.19310942,1259.2,1259.0,0.50172693]
[1760087602894,0.19310942,1259.2,1259.1,0.50172693]
[1760087606096,0.13796466,1260.9,1259.1,0.50172693]
[1760087606297,0.13796466,1260.9,1259.2,0.50172693]
[1760087606497,0.13796466,1260.9,1258.9,0.19623514]
[1760087606498,0.13796466,1260.9,1259.3,0.50172693]
[1760087606698,0.13796466,1260.9,1259.4,0.50172693]
[1760087606898,0.13796466,1260.9,1258.9,0.19623514]
[1760087607099,0.19357458,1259.2,1259.0,0.50268736]
[1760087607395,0.19357458,1259.2,1259.1,0.50268736]
[1760087609398,0.13810044,1260.5,1259.1,0.50268736]
[1760087609698,0.13810044,1260.5,1259.2,0.50268736]
[1760087609897,0.13810044,1260.5,1259.3,0.50268736]
[1760087610193,0.13810044,1260.5,1259.4,0.50268736]
[1760087610394,0.13810044,1260.5,1259.5,0.50268736]
[1760087610594,0.13810044,1260.5,1258.9,0.78288089]
[1760087610797,0.19399542,1259.2,1259.0,0.50404673]
[1760087610995,0.19399542,1259.2,1259.1,0.50404673]
[1760087611402,0.13810044,1260.5,1259.1,0.50404673]
[1760087611601,0.13810044,1260.5,1259.2,0.50404673]
[1760087611802,0.13810044,1260.5,1259.3,0.50404673]
[1760087612101,0.13810044,1260.5,1259.4,0.50404673]
[1760087612298,0.13810044,1260.5,1259.5,0.50404673]
[1760087612599,0.13810044,1260.5,1258.9,0.78288089]
[1760087612801,0.19428737,1259.2,1259.0,0.50476095]
[1760087613000,0.19428737,1259.2,1259.1,0.50476095]
[1760087613201,0.13810044,1260.5,1259.1,0.50476095]
[1760087613398,0.13810044,1260.5,1259.2,0.50476095]
[1760087613697,0.13810044,1260.5,1259.3,0.50476095]
[1760087613898,0.13810044,1260.5,1259.4,0.50476095]
[1760087614098,0.13810044,1260.5,1259.5,0.50476095]
[1760087614403,0.13810044,1260.5,1258.9,0.78288089]
[1760087614699,0.19453466,1259.2,1259.0,1.09204916]
[1760087614898,0.19453466,1259.2,1259.1,0.50540341]
[1760087615098,0.13810044,1260.5,1259.1,0.50540341]
[1760087615303,0.13810044,1260.5,1259.2,0.50540341]
[1760087615502,0.13810044,1260.5,1259.3,0.50540341]
[1760087615702,0.13810044,1260.5,1259.4,0.50540341]
[1760087615901,0.13810044,1260.5,1259.5,0.50540341]
[1760087616101,0.13810044,1260.5,1259.6,0.50540341]
[1760087616304,0.13810044,1260.5,1258.9,0.19623514]
[1760087616503,0.19463965,1259.1,1259.0,0.50572133]
[1760087623403,0.19463965,1259.1,1259.0,1.09236708]
[1760087623801,0.19463965,1259.1,1259.0,0.50572133]
[1760087628513,0.13810044,1260.5,1259.0,0.50572133]
[1760087628811,0.13810044,1260.5,1259.1,0.50572133]
[1760087629107,0.13810044,1260.5,1259.2,0.50572133]
[1760087629312,0.13810044,1260.5,1259.3,0.50572133]
[1760087629506,0.13810044,1260.5,1259.4,0.50572133]
[1760087629710,0.13810044,1260.5,1259.5,0.50572133]
[1760087629908,0.13810044,1260.5,1258.9,0.59291955]
[1760087630112,0.13810044,1260.5,1259.0,0.50697743]
[1760087630311,0.13810044,1260.5,1259.1,0.50697743]
[1760087630510,0.13810044,1260.5,1259.2,0.50697743]
[1760087630712,0.13810044,1260.5,1259.3,0.50697743]
[1760087630908,0.13810044,1260.5,1259.4,0.50697743]
[1760087631108,0.13810044,1260.5,1259.5,0.50697743]
[1760087631309,0.13810044,1260.5,1259.0,0.59291955]
[1760087631613,0.13810044,1260.5,1259.1,0.50699381]
[1760087631810,0.13810044,1260.5,1259.2,0.50699381]
[1760087632112,0.13810044,1260.5,1259.3,0.50699381]
[1760087632414,0.13810044,1260.5,1259.4,0.50699381]
[1760087632615,0.13810044,1260.5,1259.5,0.50699381]
[1760087632814,0.13810044,1260.5,1259.0,0.59291955]
[1760087633017,0.13810044,1260.5,1259.1,0.50703783]
[1760087633314,0.13810044,1260.5,1259.2,0.50703783]
[1760087633517,0.13810044,1260.5,1259.3,0.50703783]
[1760087633716,0.13810044,1260.5,1259.4,0.50703783]
[1760087633916,0.13810044,1260.5,1259.5,0.50703783]
[1760087634116,0.13810044,1260.5,1259.0,0.59291955]
[1760087634316,0.13810044,1260.5,1259.1,0.50709054]
[1760087634519,0.13810044,1260.5,1259.2,0.50709054]
[1760087634817,0.13810044,1260.5,1258.8,0.98214417]
[1760087634818,0.13810044,1260.5,1259.3,0.50709054]
[1760087635016,0.13810044,1260.5,1259.4,0.50709054]
[1760087635214,0.13810044,1260.5,1259.5,0.50709054]
[1760087635419,0.13810044,1260.5,1258.9,0.59291955]
[1760087635619,0.13810044,1260.5,1259.0,0.50719099]
[1760087635914,0.13810044,1260.5,1259.1,0.50719099]
[1760087636114,0.13810044,1260.5,1259.2,0.50719099]
[1760087636415,0.13810044,1260.5,1259.3,0.50719099]
[1760087636622,0.13810044,1260.5,1259.4,0.50719099]
[1760087636816,0.13810044,1260.5,1259.5,0.50719099]
[1760087637015,0.13810044,1260.5,1258.9,0.59291955]
[1760087637220,0.13810044,1260.5,1259.0,0.50726646]
[1760087637420,0.13810044,1260.5,1259.1,0.50726646]
[1760087637620,0.13810044,1260.5,1259.2,0.50726646]
[1760087637821,0.13810044,1260.5,1259.3,0.50726646]
[1760087638022,0.13810044,1260.5,1259.4,0.50726646]
[1760087638318,0.13810044,1260.5,1259.5,0.50726646]
[1760087638621,0.13810044,1260.5,1258.9,0.59291955]
[1760087638821,0.13810044,1260.5,1259.0,0.50740868]
[1760087639019,0.13810044,1260.5,1259.1,0.50740868]
[1760087639219,0.13810044,1260.5,1259.2,0.50740868]
[1760087639423,0.13810044,1260.5,1259.3,0.50740868]
[1760087639623,0.13810044,1260.5,1259.4,0.50740868]
[1760087639822,0.13810044,1260.5,1259.5,0.50740868]
[1760087640020,0.13810044,1260.5,1259.6,0.50740868]
[1760087640221,0.13810044,1260.5,1259.0,0.59291955]
[1760087640423,0.13810044,1260.5,1259.1,0.50752823]
[1760087640723,0.13810044,1260.5,1259.2,0.50752823]
[1760087640922,0.13810044,1260.5,1259.3,0.50752823]
[1760087641124,0.13810044,1260.5,1259.4,0.50752823]
[1760087641423,0.13810044,1260.5,1259.5,0.50752823]
[1760087641623,0.13810044,1260.5,1259.6,0.50752823]
[1760087641820,0.13810044,1260.5,1259.1,0.59291955]
[1760087642024,0.13810044,1260.5,1259.2,0.50763648]
[1760087642221,0.13810044,1260.5,1259.3,0.50763648]
[1760087642425,0.13810044,1260.5,1259.4,0.50763648]
[1760087642722,0.13810044,1260.5,1259.5,0.50763648]
[1760087642922,0.13810044,1260.5,1259.6,0.50763648]
[1760087643126,0.13810044,1260.5,1259.1,0.59291955]
[1760087643326,0.13810044,1260.5,1259.2,0.5078308]
[1760087643524,0.13810044,1260.5,1259.3,0.5078308]
[1760087643727,0.13810044,1260.5,1259.4,0.5078308]
[1760087643925,0.13810044,1260.5,1259.5,0.5078308]
[1760087644127,0.13810044,1260.5,1259.6,0.5078308]
[1760087644328,0.13810044,1260.5,1259.2,0.59291955]
[1760087644526,0.13810044,1260.5,1259.3,0.5079789]
[1760087644725,0.13810044,1260.5,1259.4,0.5079789]
[1760087644929,0.13810044,1260.5,1259.5,0.5079789]
[1760087645128,0.13810044,1260.5,1259.6,0.5079789]
[1760087645429,0.13810044,1260.5,1259.2,0.59291955]
[1760087645628,0.13810044,1260.5,1259.3,0.50800399]
[1760087645829,0.13810044,1260.5,1259.4,0.50800399]
[1760087646029,0.13810044,1260.5,1259.5,0.50800399]
[1760087646225,0.13810044,1260.5,1259.6,0.50800399]
[1760087646526,0.13810044,1260.5,1259.2,0.59291955]
[1760087646730,0.13810044,1260.5,1258.9,0.78590903]
[1760087646731,0.13810044,1260.5,1259.3,0.50802468]
[1760087647026,0.13810044,1260.5,1259.4,0.50802468]
[1760087647226,0.13810044,1260.5,1259.5,0.50802468]
[1760087647429,0.13810044,1260.5,1259.6,0.50802468]
[1760087647628,0.13810044,1260.5,1259.2,0.59291955]
[1760087647829,0.13810044,1260.5,1259.3,0.50801893]
[1760087648034,0.13810044,1260.5,1259.4,0.50801893]
[1760087648232,0.13810044,1260.5,1259.5,0.50801893]
[1760087648431,0.13810044,1260.5,1259.6,0.50801893]
[1760087648635,0.13810044,1260.5,1259.1,0.59291955]
[1760087648836,0.13810044,1260.5,1259.2,0.50804124]
[1760087649033,0.13810044,1260.5,1259.3,0.50804124]
[1760087649236,0.13810044,1260.5,1259.4,0.50804124]
[1760087649532,0.13810044,1260.5,1259.5,0.50804124]
[1760087649737,0.13810044,1260.5,1259.6,0.50804124]
[1760087650036,0.13810044,1260.5,1259.1,0.59291955]
[1760087650234,0.13810044,1260.5,1259.2,0.50803783]
[1760087650534,0.13810044,1260.5,1259.3,0.50803783]
[1760087650737,0.13810044,1260.5,1259.4,0.50803783]
[1760087650933,0.13810044,1260.5,1259.5,0.50803783]
[1760087651237,0.13810044,1260.5,1259.6,0.50803783]
[1760087651538,0.13810044,1260.5,1259.0,0.59291955]
[1760087651734,0.13810044,1260.5,1259.1,0.50806066]
[1760087651937,0.13810044,1260.5,1259.2,0.50806066]
[1760087652237,0.13810044,1260.5,1259.3,0.50806066]
[1760087652437,0.13810044,1260.5,1259.4,0.50806066]
[1760087652736,0.13810044,1260.5,1259.5,0.50806066]
[1760087652937,0.13810044,1260.5,1259.6,0.50806066]
[1760087653132,0.13810044,1260.5,1259.0,0.59291955]
[1760087653336,0.13810044,1260.5,1259.1,0.50808682]
[1760087653536,0.13810044,1260.5,1259.2,0.50808682]
[1760087653735,0.13810044,1260.5,1259.3,0.50808682]
[1760087653937,0.13810044,1260.5,1259.4,0.50808682]
[1760087654234,0.13810044,1260.5,1259.5,0.50808682]
[1760087654433,0.13810044,1260.5,1259.6,0.50808682]
[1760087654736,0.13810044,1260.5,1259.1,0.59291955]
[1760087654934,0.13810044,1260.5,1259.2,0.50809812]
[1760087655138,0.13810044,1260.5,1259.3,0.50809812]
[1760087655438,0.13810044,1260.5,1259.4,0.50809812]
[1760087655640,0.13810044,1260.5,1259.1,0.59291955]
[1760087655641,0.13810044,1260.5,1259.5,0.50809812]
[1760087655935,0.13810044,1260.5,1259.6,0.50809812]
[1760087656138,0.13810044,1260.5,1259.1,0.59291955]
[1760087656336,0.13810044,1260.5,1259.2,0.5081163]
[1760087656537,0.13810044,1260.5,1259.3,0.5081163]
[1760087656737,0.13810044,1260.5,1259.4,0.5081163]
[1760087656938,0.13810044,1260.5,1259.5,0.5081163]
[1760087657239,0.13810044,1260.5,1259.6,0.5081163]
[1760087657438,0.13810044,1260.5,1259.1,0.59291955]
[1760087657741,0.13810044,1260.5,1259.2,0.50819078]
[1760087657940,0.13810044,1260.5,1259.3,0.50819078]
[1760087658240,0.13810044,1260.5,1259.4,0.50819078]
[1760087658440,0.13810044,1260.5,1259.5,0.50819078]
[1760087658641,0.13810044,1260.5,1259.6,0.50819078]
[1760087658838,0.13810044,1260.5,1259.1,0.59291955]
[1760087659043,0.13810044,1260.5,1259.2,0.50825875]
[1760087659242,0.13810044,1260.5,1259.3,0.50825875]
[1760087659440,0.13810044,1260.5,1259.4,0.50825875]
[1760087659739,0.13810044,1260.5,1259.5,0.50825875]
[1760087659938,0.13810044,1260.5,1259.0,0.59291955]
[1760087660142,0.13810044,1260.5,1259.1,0.50828362]
[1760087660338,0.13810044,1260.5,1259.2,0.50828362]
[1760087660541,0.13810044,1260.5,1259.3,0.50828362]
[1760087660840,0.13810044,1260.5,1259.4,0.50828362]
[1760087661043,0.13810044,1260.5,1259.5,0.50828362]
[1760087661243,0.13810044,1260.5,1259.0,0.59291955]
[1760087661440,0.13810044,1260.5,1259.1,0.50828371]
[1760087661644,0.13810044,1260.5,1259.2,0.50828371]
[1760087661945,0.13810044,1260.5,1259.3,0.50828371]
[1760087662146,0.13810044,1260.5,1259.4,0.50828371]
[1760087662444,0.13810044,1260.5,1258.9,0.59291955]
[1760087662646,0.13810044,1260.5,1259.0,0.50824547]
[1760087662845,0.13810044,1260.5,1259.1,0.50824547]
[1760087663042,0.13810044,1260.5,1259.2,0.50824547]
[1760087663245,0.13810044,1260.5,1259.3,0.50824547]
[1760087663447,0.13810044,1260.5,1259.4,0.50824547]
[1760087663747,0.13810044,1260.5,1258.8,0.59291955]
[1760087663946,0.13810044,1260.5,1258.9,0.50818808]
[1760087664244,0.13810044,1260.5,1259.0,0.50818808]
[1760087664449,0.13810044,1260.5,1259.1,0.50818808]
[1760087664746,0.13810044,1260.5,1259.2,0.50818808]
[1760087664945,0.13810044,1260.5,1259.3,0.50818808]
[1760087665141,0.13810044,1260.5,1259.4,0.50818808]
[1760087665342,0.13810044,1260.5,1258.8,0.59291955]
[1760087665543,0.13810044,1260.5,1258.9,0.50808719]
[1760087665747,0.13810044,1260.5,1259.0,0.50808719]
[1760087665942,0.13810044,1260.5,1259.1,0.50808719]
[1760087666142,0.13810044,1260.5,1259.2,0.50808719]
[1760087666343,1.31482474,1260.5,1258.7,0.59291955]
[1760087666547,1.31482474,1260.5,1258.8,0.50799646]
[1760087666745,1.31482474,1260.5,1258.9,0.50799646]
[1760087666949,1.1767243,1260.4,1259.0,0.50799646]
[1760087667149,1.1767243,1260.3,1259.1,0.50799646]
[1760087667349,1.1767243,1260.4,1258.7,0.59291955]
[1760087667546,1.31482474,1260.5,1258.8,0.50787045]
[1760087667749,1.31482474,1260.5,1258.9,0.50787045]
[1760087667949,1.31482474,1260.5,1259.0,0.50787045]
[1760087668249,1.31482474,1260.5,1259.1,0.50787045]
[1760087668445,1.31482474,1260.5,1258.7,0.59291955]
[1760087668648,1.31482474,1260.5,1258.8,0.50777363]
[1760087668848,1.31482474,1260.5,1258.9,0.50777363]
[1760087669047,1.31482474,1260.5,1259.0,0.50777363]
[1760087669245,1.31482474,1260.5,1259.1,0.50777363]
[1760087669450,1.31482474,1260.5,1258.7,0.59291955]
[1760087669651,0.13810044,1260.5,1258.8,0.50769153]
[1760087669950,0.13810044,1260.5,1257.5,1.1715114]
[1760087669951,0.13810044,1260.5,1258.9,0.50769153]
[1760087670150,0.13810044,1260.5,1259.0,0.50769153]
[1760087670447,0.13810044,1260.5,1259.1,0.50769153]
[1760087670647,0.13810044,1260.5,1259.2,0.50769153]
[1760087670850,0.13810044,1260.5,1259.3,0.50769153]
[1760087671051,0.13810044,1260.5,1259.4,0.50769153]
[1760087671248,0.13810044,1260.5,1259.5,0.50769153]
[1760087671453,0.13810044,1260.5,1258.7,0.59291955]
[1760087671653,0.13810044,1260.5,1258.9,0.59291955]
[1760087671850,0.13810044,1260.5,1259.0,0.5076381]
[1760087672052,0.13810044,1260.5,1259.1,0.5076381]
[1760087672250,0.13810044,1260.5,1259.2,0.5076381]
[1760087672450,0.13810044,1260.5,1259.3,0.5076381]
[1760087672753,0.13810044,1260.5,1258.7,0.78590903]
[1760087672754,0.13810044,1260.5,1258.7,0.59291955]
[1760087672954,0.19549616,1258.9,1258.8,1.10054835]
[1760087673654,0.19549616,1258.9,1258.8,0.5076288]
[1760087673853,0.19549616,1258.9,1258.8,1.10054835]
[1760087674252,0.19549616,1258.9,1258.8,0.5076288]
[1760087674955,0.19549616,1258.9,1258.8,1.10054835]
[1760087675955,0.19549616,1259.0,1258.8,0.5076288]
[1760087676156,0.19549616,1259.1,1258.9,1.10054835]
[1760087676352,0.19549616,1259.1,1259.0,0.5076288]
[1760087676855,0.19549616,1259.2,1259.0,0.5076288]
[1760087677153,0.19549616,1259.2,1259.1,0.5076288]
[1760087678358,0.13810044,1260.5,1259.1,0.5076288]
[1760087678652,0.13810044,1260.5,1259.2,0.5076288]
[1760087678855,0.13810044,1260.5,1259.3,0.5076288]
[1760087679157,0.13810044,1260.5,1259.4,0.5076288]
[1760087679358,0.13810044,1260.5,1259.5,0.5076288]
[1760087679558,0.13810044,1260.5,1259.0,0.59291955]
[1760087679758,0.13810044,1260.5,1259.1,0.50755689]
[1760087679957,0.13810044,1260.5,1259.2,0.50755689]
[1760087680152,0.13810044,1260.5,1259.3,0.50755689]
[1760087680454,0.13810044,1260.5,1259.4,0.50755689]
[1760087680656,0.13810044,1260.5,1259.5,0.50755689]
[1760087680857,0.13810044,1260.5,1259.0,0.59291955]
[1760087681058,0.19555868,1259.1,1259.0,0.59291955]
[1760087681358,0.19555868,1259.1,1259.0,1.1004684]
[1760087682661,0.19555868,1259.1,1259.0,0.50754885]
[1760087683258,0.19555868,1259.1,1259.0,1.29345788]
[1760087683762,0.19555868,1259.2,1259.0,1.29345788]
[1760087683963,0.19555868,1259.2,1259.1,0.50754885]
[1760087692771,0.13810044,1260.5,1259.1,0.50754885]
[1760087693068,0.13810044,1260.5,1259.2,1.10098145]
[1760087693274,0.13810044,1260.5,1259.3,0.50754885]
[1760087693471,0.13810044,1260.5,1259.4,0.50754885]
[1760087693669,0.13810044,1260.5,1259.5,0.50754885]
[1760087693873,0.13810044,1260.5,1259.6,0.50754885]
[1760087694172,0.13810044,1260.5,1259.7,0.50754885]
[1760087694374,0.13810044,1260.5,1259.2,0.5934326]
[1760087694673,0.13810044,1260.5,1259.3,0.50740081]
[1760087694868,0.13810044,1260.5,1259.4,0.50740081]
[1760087695070,0.13810044,1260.5,1259.5,0.50740081]
[1760087695269,0.13810044,1260.5,1258.9,0.5934326]
[1760087695469,0.13810044,1260.5,1259.0,0.50741542]
[1760087695670,0.13810044,1260.5,1259.1,0.50741542]
[1760087695872,0.13810044,1260.5,1259.2,0.50741542]
[1760087696070,0.13810044,1260.5,1259.3,0.50741542]
[1760087696271,0.13810044,1260.5,1259.4,0.50741542]
[1760087696474,0.13810044,1260.5,1259.5,0.50741542]
[1760087696670,0.13810044,1260.5,1259.6,0.50741542]
[1760087696874,0.13810044,1260.5,1259.1,0.5934326]
[1760087697072,0.13810044,1260.5,1259.2,0.50737473]
[1760087697275,0.13810044,1260.5,1259.3,0.50737473]
[1760087697575,0.13810044,1260.5,1259.4,0.50737473]
[1760087697774,0.13810044,1260.5,1259.5,0.50737473]
[1760087698071,0.13810044,1260.5,1259.6,0.50737473]
[1760087698274,0.13810044,1260.5,1259.1,0.5934326]
[1760087698475,0.13810044,1260.5,1259.2,0.50736861]
[1760087698673,0.13810044,1260.5,1259.3,0.50736861]
[1760087698875,0.13810044,1260.5,1259.4,0.50736861]
[1760087699174,0.13810044,1260.5,1259.5,0.50736861]
[1760087699373,0.13810044,1260.5,1259.6,0.50736861]
[1760087699573,0.13810044,1260.5,1259.1,0.5934326]
[1760087699773,0.13810044,1260.5,1259.2,0.50736558]
[1760087699973,0.13810044,1260.5,1259.3,0.50736558]
[1760087700176,0.13810044,1260.5,1259.4,0.50736558]
[1760087700376,0.13810044,1260.5,1259.5,0.50736558]
[1760087700576,0.13810044,1260.5,1259.0,0.5934326]
[1760087700776,0.13810044,1260.5,1259.1,0.50740474]
[1760087700978,0.13810044,1260.5,1259.2,0.50740474]
[1760087701279,0.13810044,1260.5,1259.3,0.50740474]
[1760087701478,0.13810044,1260.5,1259.4,0.50740474]
[1760087701677,0.13810044,1260.5,1259.5,0.50740474]
[1760087701880,0.13810044,1260.5,1259.0,0.5934326]
[1760087702180,0.13810044,1260.5,1259.1,1.10080649]
[1760087702476,0.13810044,1260.5,1259.2,0.50737389]
[1760087702674,0.13810044,1260.5,1259.3,0.50737389]
[1760087702877,0.13810044,1260.5,1259.4,0.50737389]
[1760087703074,0.13810044,1260.5,1259.5,0.50737389]
[1760087703278,0.13810044,1260.5,1259.6,0.50737389]
[1760087703479,0.13810044,1260.5,1259.1,0.5934326]
[1760087703675,0.13810044,1260.5,1259.2,0.50728508]
[1760087703879,0.13810044,1260.5,1259.3,0.50728508]
[1760087704076,0.13810044,1260.5,1259.4,0.50728508]
[1760087704377,0.13810044,1260.5,1259.5,0.50728508]
[1760087704680,0.13810044,1260.5,1259.0,0.5934326]
[1760087704975,0.13810044,1260.5,1259.1,0.50730236]
[1760087705179,0.13810044,1260.5,1259.2,0.50730236]
[1760087705379,0.13810044,1260.5,1259.3,0.50730236]
[1760087705675,0.13810044,1260.5,1259.4,0.50730236]
[1760087705875,0.13810044,1260.5,1259.5,0.50730236]
[1760087706076,0.13810044,1260.5,1259.1,0.5934326]
[1760087706378,0.13810044,1260.5,1259.2,0.50729722]
[1760087706577,0.13810044,1260.5,1259.3,0.50729722]
[1760087706776,0.13810044,1260.5,1259.4,0.50729722]
[1760087707075,0.13810044,1260.5,1259.5,0.50729722]
[1760087707274,0.13810044,1260.5,1259.6,0.50729722]
[1760087707477,0.13810044,1260.5,1259.1,0.5934326]
[1760087707678,0.13810044,1260.5,1259.2,0.50728157]
[1760087707876,0.13810044,1260.5,1259.3,0.50728157]
[1760087708075,0.13810044,1260.5,1259.4,0.50728157]
[1760087708379,0.13810044,1260.5,1259.5,0.50728157]
[1760087708580,0.13810044,1260.5,1259.1,0.5934326]
[1760087708777,0.13810044,1260.5,1259.2,0.50728086]
[1760087708977,0.13810044,1260.5,1259.3,0.50728086]
[1760087709177,0.13810044,1260.5,1259.1,0.5934326]
[1760087709178,0.13810044,1260.5,1259.4,0.50728086]
[1760087709478,0.13810044,1260.5,1259.5,0.50728086]
[1760087709676,0.13810044,1260.5,1259.6,0.50728086]
[1760087709876,0.13810044,1260.5,1259.1,0.5934326]
[1760087710078,0.13810044,1260.5,1259.2,0.50728018]
[1760087710278,0.13810044,1260.5,1259.3,0.50728018]
[1760087710477,0.13810044,1260.5,1259.4,0.50728018]
[1760087710779,0.13810044,1260.5,1259.5,0.50728018]
[1760087710978,0.13810044,1260.5,1259.6,0.50728018]
[1760087711177,0.13810044,1260.5,1259.1,0.5934326]
[1760087711382,0.13810044,1260.5,1259.3,0.5934326]
[1760087711684,0.13810044,1260.5,1259.4,0.50721447]
[1760087711885,0.13810044,1260.5,1259.5,1.10064707]
[1760087712083,0.13810044,1260.5,1259.6,0.50721447]
[1760087712381,0.13810044,1260.5,1259.7,0.50721447]
[1760087712687,0.13810044,1260.5,1259.8,0.50721447]
[1760087712881,0.13810044,1260.5,1259.4,0.5934326]
[1760087713082,0.13810044,1260.5,1259.5,0.50705113]
[1760087713286,0.13810044,1260.5,1259.6,0.50705113]
[1760087713485,0.13810044,1260.5,1259.7,0.50705113]
[1760087713781,0.13810044,1260.5,1259.8,0.50705113]
[1760087713982,0.13810044,1260.5,1259.4,0.5934326]
[1760087714182,0.13810044,1260.5,1259.5,0.50694157]
[1760087714380,0.13810044,1260.5,1259.6,0.50694157]
[1760087714582,0.13810044,1260.5,1259.7,0.50694157]
[1760087714781,0.13810044,1260.5,1259.8,0.50694157]
[1760087714986,0.13810044,1260.5,1259.9,0.50694157]
[1760087715188,0.13810044,1260.5,1259.5,0.5934326]
[1760087715387,0.13810044,1260.5,1259.6,0.50665222]
[1760087715584,0.13810044,1260.5,1259.7,0.50665222]